bitfinex-derivatives/quotes_BTCF0:USTF0_20250424
["timestamp","ask_amount","ask_price","bid_price","bid_amount"]
[1745472607264,0.0052,92632.0,92631.0,0.3413314]
[1745472608173,0.0381,92632.0,92631.0,0.3413314]
[1745472608974,0.0381,92632.0,92631.0,0.3423314]
[1745472610078,0.1460303,92632.0,92631.0,0.3423314]
[1745472610469,0.0381,92632.0,92631.0,0.3423314]
[1745472611269,0.0062,92632.0,92631.0,0.3423314]
[1745472612364,0.0062,92632.0,92631.0,0.5189674]
[1745472614272,0.0062,92632.0,92631.0,0.4110114]
[1745472617165,0.0062,92632.0,92631.0,0.7718114]
[1745472618879,0.0062,92632.0,92631.0,0.7717714]
[1745472624369,0.0062,92632.0,92631.0,0.4109714]
[1745472624576,0.0062,92632.0,92631.0,0.7717714]
[1745472625882,0.0062,92632.0,92631.0,0.78747518]
[1745472626879,0.0062,92632.0,92631.0,0.7717714]
[1745472634984,0.0062,92632.0,92631.0,0.7717314]
[1745472639786,1e-07,92632.0,92631.0,0.7717314]
[1745472643095,1e-07,92632.0,92631.0,0.99169541]
[1745472646692,1e-07,92632.0,92631.0,0.7717314]
[1745472647193,1e-07,92632.0,92631.0,0.8796874]
[1745472653501,1e-07,92632.0,92631.0,0.7717314]
[1745472653803,1e-07,92632.0,92631.0,0.8796874]
[1745472656502,0.0309001,92632.0,92631.0,0.8796874]
[1745472659598,0.0309001,92632.0,92631.0,0.8182874]
[1745472659801,0.0615001,92632.0,92631.0,0.93030522]
[1745472661103,0.0309001,92632.0,92631.0,0.93030522]
[1745472661696,0.0309001,92632.0,92631.0,0.96210522]
[1745472662208,0.0309001,92632.0,92631.0,0.93030522]
[1745472664498,0.0309001,92632.0,92631.0,0.7103314]
[1745472665205,0.0309001,92632.0,92631.0,0.6417314]
[1745472665407,0.0309001,92632.0,92631.0,0.7102914]
[1745472670413,0.0309001,92632.0,92631.0,0.3494914]
[1745472670614,0.0309001,92632.0,92631.0,0.7102914]
[1745472671315,0.0011,92667.0,92664.0,0.107893]
[1745472671814,0.6108,92665.0,92664.0,0.107893]
[1745472672108,0.7828,92665.0,92664.0,0.107893]
[1745472673706,0.7838,92665.0,92664.0,0.107893]
[1745472674016,0.5358,92665.0,92664.0,0.108893]
[1745472674321,0.6436918,92665.0,92664.0,0.001]
[1745472674618,0.6742918,92665.0,92664.0,0.108893]
[1745472674812,0.6742918,92665.0,92664.0,0.107893]
[1745472674813,0.6722918,92665.0,92664.0,0.107893]
[1745472675005,0.6742918,92665.0,92664.0,0.107893]
[1745472676412,0.7068918,92665.0,92664.0,0.107893]
[1745472679323,0.8169842,92665.0,92664.0,0.107893]
[1745472681011,0.7068918,92665.0,92664.0,0.107893]
[1745472682624,0.1079081,92655.0,92654.0,0.1618546]
[1745472682917,0.4687081,92655.0,92654.0,0.1618546]
[1745472683118,0.5634081,92655.0,92654.0,0.1618546]
[1745472683816,0.5634081,92655.0,92654.0,0.1648546]
[1745472684116,0.7354081,92655.0,92654.0,0.1648546]
[1745472685317,0.5634081,92655.0,92654.0,0.1638546]
[1745472686719,0.5634081,92655.0,92654.0,0.1628546]
[1745472686921,0.5634081,92655.0,92654.0,0.1638546]
[1745472696827,0.2026081,92655.0,92654.0,0.1638546]
[1745472697016,0.5634081,92655.0,92654.0,0.1638546]
[1745472700925,0.5327081,92655.0,92654.0,0.1638546]
[1745472701324,0.5018035,92655.0,92654.0,0.1638546]
[1745472701524,0.3939,92655.0,92654.0,0.2280546]
[1745472701722,0.5018035,92655.0,92654.0,0.2280546]
[1745472701923,0.3939,92655.0,92654.0,0.2280546]
[1745472702110,0.3608,92655.0,92654.0,0.2280546]
[1745472702926,0.4687035,92655.0,92654.0,0.2280546]
[1745472706329,0.3608,92655.0,92654.0,0.2280546]
[1745472706719,0.0011,92667.0,92663.0,0.1078941]
[1745472707127,0.0011,92667.0,92663.0,0.2798941]
[1745472707437,0.107891,92666.0,92663.0,0.2798941]
[1745472707733,0.11519819,92664.0,92663.0,0.2798941]
[1745472707927,0.11519819,92664.0,92663.0,0.3102941]
[1745472708130,0.11619819,92664.0,92663.0,0.1382941]
[1745472708429,0.11819819,92664.0,92663.0,0.1382941]
[1745472708728,0.0358,92664.0,92663.0,0.1382941]
[1745472715854,0.0358,92664.0,92663.0,0.2067741]
[1745472716748,0.003,92664.0,92663.0,0.2067741]
[1745472719453,0.0343,92664.0,92663.0,0.2067741]
[1745472721954,0.003,92664.0,92663.0,0.2067741]
[1745472722148,0.003,92664.0,92663.0,0.3787741]
[1745472726052,0.3416,92665.0,92664.0,0.107893]
[1745472726447,0.3416,92665.0,92664.0,0.171993]
[1745472727052,0.3436,92665.0,92664.0,0.172993]
[1745472727358,0.004,92665.0,92664.0,0.344993]
[1745472728755,0.004,92665.0,92664.0,0.2371]
[1745472728957,0.4726918,92665.0,92664.0,0.173]
[1745472729146,0.6763918,92665.0,92664.0,0.001]
[1745472729351,0.6763918,92665.0,92664.0,0.108893]
[1745472730251,0.3965,92665.0,92664.0,0.108893]
[1745472730449,0.5043918,92665.0,92664.0,0.108893]
[1745472730655,0.3648,92665.0,92664.0,0.108893]
[1745472730857,0.3648,92665.0,92664.0,0.202193]
[1745472732158,0.3648,92665.0,92664.0,0.374193]
[1745472734661,0.004,92665.0,92664.0,0.374193]
[1745472738866,0.002,92665.0,92664.0,0.374193]
[1745472739065,0.002,92665.0,92664.0,0.373193]
[1745472743865,0.08239819,92683.0,92679.0,0.1078755]
[1745472744067,1e-08,92680.0,92679.0,0.3483555]
[1745472745266,0.00200001,92680.0,92679.0,0.35908551]
[1745472745467,0.0304,92682.0,92681.0,0.1078732]
[1745472746060,0.0304,92682.0,92681.0,0.1703732]
[1745472746464,0.08239819,92683.0,92682.0,0.107872]
[1745472746665,0.08239819,92683.0,92682.0,0.170372]
[1745472747165,0.08239819,92683.0,92682.0,0.342372]
[1745472747464,0.0332,92689.0,92688.0,0.107865]
[1745472748265,0.0332,92689.0,92688.0,0.168565]
[1745472749371,0.0372,92689.0,92688.0,0.169565]
[1745472750060,0.0412,92689.0,92688.0,0.170565]
[1745472750458,0.008,92689.0,92688.0,0.170565]
[1745472750763,0.08349819,92697.0,92696.0,0.1078557]
[1745472750962,0.08349819,92697.0,92696.0,0.1762957]
[1745472751165,0.08349819,92697.0,92696.0,0.3482957]
[1745472751669,0.08349819,92697.0,92696.0,0.4441957]
[1745472751965,0.0011,92697.0,92696.0,0.4441957]
[1745472752167,0.0011,92697.0,92696.0,0.2721957]
[1745472752662,0.0021,92697.0,92696.0,0.2721957]
[1745472753170,0.0021,92697.0,92696.0,0.4441957]
[1745472754068,0.0021,92697.0,92696.0,0.2721957]
[1745472754857,0.0021,92697.0,92696.0,0.28046656]
[1745472755571,0.08239819,92707.0,92706.0,0.1078441]
[1745472755762,0.11429819,92707.0,92706.0,0.1078441]
[1745472756158,0.11429819,92707.0,92706.0,0.2798441]
[1745472756468,0.0319,92707.0,92706.0,0.3420441]
[1745472756670,0.0349,92707.0,92706.0,0.3420441]
[1745472756965,0.0369,92707.0,92706.0,0.3420441]
[1745472757168,0.0339,92707.0,92706.0,0.3420441]
[1745472758168,0.002,92707.0,92706.0,0.3420441]
[1745472758574,0.0302,92713.0,92712.0,0.1078371]
[1745472758872,0.0302,92713.0,92712.0,0.18676821]
[1745472759171,0.0302,92713.0,92712.0,0.35876821]
[1745472759571,0.0302,92713.0,92712.0,0.42326821]
[1745472761974,0.0302,92713.0,92712.0,0.42426821]
[1745472762274,0.0302,92713.0,92712.0,0.25226821]
[1745472766069,0.0302,92713.0,92712.0,0.18386821]
[1745472766271,0.0302,92713.0,92712.0,0.11936821]
[1745472766477,0.138036,92713.0,92712.0,0.001]
[1745472766681,0.138036,92713.0,92712.0,0.0694]
[1745472767174,0.310036,92713.0,92712.0,0.0694]
[1745472767375,0.310036,92713.0,92712.0,0.1772371]
[1745472770076,0.138036,92713.0,92712.0,0.1772371]
[1745472770275,0.498836,92713.0,92712.0,0.1772371]
[1745472771278,0.670836,92713.0,92712.0,0.1772371]
[1745472774790,0.310036,92713.0,92712.0,0.1772371]
[1745472775082,0.670836,92713.0,92712.0,0.1772371]
[1745472781285,0.670836,92713.0,92712.0,0.0694]
[1745472781589,0.1078394,92710.0,92709.0,0.00027]
[1745472782083,0.0539253,92702.0,92701.0,0.1078442]
[1745472782305,0.3608,92702.0,92701.0,0.1078442]
[1745472782989,0.5018488,92702.0,92701.0,0.1078442]
[1745472783182,0.6738488,92702.0,92701.0,0.1078442]
[1745472783379,0.6738488,92702.0,92701.0,0.1108442]
[1745472784185,0.5018488,92702.0,92701.0,0.1108442]
[1745472785083,0.5018488,92702.0,92701.0,0.1138442]
[1745472789799,0.1078485,92703.0,92702.0,0.1617703]
[1745472789978,0.1078485,92703.0,92702.0,0.1948703]
[1745472790887,0.1078485,92703.0,92702.0,0.1978703]
[1745472792201,0.1078485,92703.0,92702.0,0.1998703]
[1745472793296,0.1078465,92704.0,92703.0,0.1078464]
[1745472793690,0.1078465,92704.0,92703.0,0.1383464]
[1745472793896,0.3919,92705.0,92704.0,0.1078464]
[1745472793897,0.3608,92705.0,92704.0,0.1078464]
[1745472794092,0.3608,92705.0,92704.0,0.1383464]
[1745472795491,0.3608,92705.0,92704.0,0.1413464]
[1745472795690,0.3608,92705.0,92704.0,0.1433464]
[1745472796797,0.3608,92705.0,92704.0,0.14315347]
[1745472799087,0.3608,92705.0,92704.0,0.21151347]
[1745472818021,0.0316,92706.0,92705.0,0.1078453]
[1745472818223,0.3608,92713.0,92712.0,0.1078371]
[1745472819037,0.3608,92713.0,92712.0,0.1391371]
[1745472819534,0.3608,92713.0,92712.0,0.1713371]
[1745472819835,0.468636,92713.0,92712.0,0.1713371]
[1745472820526,0.532536,92713.0,92712.0,0.1713371]
[1745472821135,0.704536,92713.0,92712.0,0.1713371]
[1745472821337,0.704536,92713.0,92712.0,0.1723371]
[1745472826240,0.532536,92713.0,92712.0,0.1723371]
[1745472827143,0.704536,92713.0,92712.0,0.1723371]
[1745472829543,0.704536,92713.0,92712.0,0.1713371]
[1745472829742,0.704536,92713.0,92712.0,0.1723371]
[1745472830343,0.640636,92713.0,92712.0,0.1723371]
[1745472831233,0.468636,92713.0,92712.0,0.1723371]
[1745472833041,0.3608,92713.0,92712.0,0.1723371]
[1745472833234,0.468636,92713.0,92712.0,0.1723371]
[1745472841349,0.3608,92713.0,92712.0,0.1723371]
[1745472842441,0.3911,92713.0,92712.0,0.1723371]
[1745472843149,0.5631,92713.0,92712.0,0.1723371]
[1745472844552,0.172,92713.0,92712.0,0.1723371]
[1745472845252,0.1393309,92718.0,92717.0,0.1078313]
[1745472846149,0.3113309,92718.0,92717.0,0.1740313]
[1745472846348,0.3123309,92718.0,92717.0,0.1740313]
[1745472847245,0.1403309,92718.0,92717.0,0.1740313]
[1745472852451,0.0325,92718.0,92717.0,0.1740313]
[1745472855361,0.001,92718.0,92717.0,0.1740313]
[1745472856250,0.1627467,92718.0,92717.0,0.1078313]
[1745472856451,0.1627467,92718.0,92714.0,0.1617512]
[1745472856452,0.1078336,92715.0,92714.0,0.1617512]
[1745472857052,0.1185161,92717.0,92714.0,0.0539174]
[1745472857246,0.0325,92717.0,92716.0,0.1078325]
[1745472857855,0.0325,92717.0,92716.0,0.1725325]
[1745472859662,0.0335,92717.0,92716.0,0.1725325]
[1745472861756,0.001,92717.0,92716.0,0.1725325]
[1745472869869,0.001,92717.0,92716.0,0.18049448]
[1745472870669,0.0011,92727.0,92726.0,0.1078208]
[1745472871461,0.0011,92727.0,92726.0,0.1404208]
[1745472871965,0.0323,92727.0,92726.0,0.18430068]
[1745472872471,0.0353,92727.0,92726.0,0.18430068]
[1745472872971,0.0373,92727.0,92726.0,0.1735208]
[1745472874772,0.1775197,92727.0,92726.0,0.1735208]
[1745472875675,0.0697,92727.0,92726.0,0.1735208]
[1745472877288,0.1025,92727.0,92726.0,0.1078208]
[1745472877677,0.1025,92727.0,92724.0,0.1553511]
[1745472877678,0.107822,92725.0,92724.0,0.06824]
[1745472878075,0.107822,92725.0,92714.0,0.0871174]
[1745472878076,0.1617497,92717.0,92716.0,0.107832]
[1745472878273,0.5225497,92717.0,92716.0,0.176072]
[1745472878782,0.4147161,92717.0,92716.0,0.176072]
[1745472879081,0.6523161,92717.0,92716.0,0.176072]
[1745472881585,0.5984,92717.0,92716.0,0.176072]
[1745472881886,0.5984,92717.0,92716.0,0.107832]
[1745472882181,0.5342313,92717.0,92716.0,0.107832]
[1745472883180,0.7062313,92717.0,92716.0,0.107832]
[1745472890390,0.5342313,92717.0,92716.0,0.107832]
[1745472891088,0.7062313,92717.0,92716.0,0.107832]
[1745472897594,0.7062313,92717.0,92716.0,0.138032]
[1745472900784,0.7062313,92717.0,92716.0,0.169332]
[1745472901195,0.7062313,92717.0,92716.0,0.171332]
[1745472901888,0.6734313,92717.0,92716.0,0.173332]
[1745472903086,0.5014313,92717.0,92716.0,0.173332]
[1745472907694,0.3936,92717.0,92716.0,0.173332]
[1745472907995,0.5014313,92717.0,92716.0,0.173332]
[1745472909793,0.3936,92717.0,92716.0,0.173332]
[1745472910093,0.3608,92717.0,92716.0,0.173332]
[1745472910485,0.4686306,92718.0,92717.0,0.1078313]
[1745472910688,0.4686306,92718.0,92717.0,0.1681313]
[1745472911889,0.4686306,92718.0,92717.0,0.1711313]
[1745472912092,0.4686306,92718.0,92717.0,0.1731313]
[1745472912601,0.5313306,92718.0,92717.0,0.1731313]
[1745472913209,0.7033306,92718.0,92717.0,0.1731313]
[1745472917202,0.5139306,92718.0,92717.0,0.1731313]
[1745472917509,0.6217612,92718.0,92717.0,0.005]
[1745472917902,0.1078336,92715.0,92714.0,1e-07]
[1745472918102,0.2798336,92715.0,92714.0,1e-07]
[1745472918405,0.3876896,92715.0,92714.0,1e-07]
[1745472918807,0.4178896,92715.0,92714.0,1e-07]
[1745472919106,0.4218896,92715.0,92714.0,0.01566773]
[1745472919295,0.3140336,92715.0,92714.0,0.12350253]
[1745472920097,0.3140336,92715.0,92714.0,0.1078349]
[1745472920499,0.3110336,92715.0,92714.0,0.1078349]
[1745472920903,0.2032,92715.0,92714.0,0.1078349]
[1745472921197,0.003,92715.0,92714.0,0.1705349]
[1745472922000,0.002,92715.0,92714.0,0.1705349]
[1745472922201,0.141132,92717.0,92716.0,0.1078325]
[1745472924613,0.501932,92717.0,92716.0,0.1098325]
[1745472924805,0.501932,92717.0,92716.0,0.1108325]
[1745472925512,0.3941,92717.0,92716.0,0.1108325]
[1745472925707,0.0333,92717.0,92716.0,0.1108325]
[1745472926112,0.0333,92717.0,92716.0,0.12154732]
[1745472927315,0.1411313,92717.0,92716.0,0.12154732]
[1745472927612,0.0333,92717.0,92716.0,0.12154732]
[1745472927809,0.1078288,92720.0,92719.0,0.107829]
[1745472929017,0.1078288,92720.0,92719.0,0.171729]
[1745472929410,0.1078288,92720.0,92719.0,0.172729]
[1745472934321,0.0333,92721.0,92720.0,0.1078278]
[1745472934517,0.0333,92721.0,92720.0,0.1695278]
[1745472935419,0.0333,92721.0,92720.0,0.1705278]
[1745472936311,0.1411267,92721.0,92720.0,0.1705278]
[1745472938619,0.0333,92721.0,92720.0,0.1705278]
[1745472941423,0.3608,92725.0,92724.0,0.1078232]
[1745472942221,0.468622,92725.0,92724.0,0.1617343]
[1745472942418,0.468622,92725.0,92724.0,0.2262343]
[1745472942813,0.469622,92725.0,92724.0,0.2262343]
[1745472944925,0.468622,92725.0,92724.0,0.2272343]
[1745472947330,0.0858102,92727.0,92724.0,0.2272343]
[1745472947331,0.0319,92727.0,92726.0,0.1078208]
[1745472947524,0.0011,92727.0,92726.0,0.1078208]
[1745472947715,0.0011,92727.0,92726.0,0.1727208]
[1745472947914,0.1089197,92727.0,92726.0,0.1727208]
[1745472948426,0.1089197,92727.0,92726.0,0.1737208]
[1745472949527,0.1415197,92727.0,92726.0,0.1737208]
[1745472954518,0.1415197,92727.0,92726.0,0.1747208]
[1745472955319,0.1415197,92727.0,92726.0,0.1737208]
[1745472955519,0.1415197,92727.0,92726.0,0.1757208]
[1745472956627,0.1415197,92727.0,92726.0,0.1747208]
[1745472956816,0.1415197,92727.0,92726.0,0.1757208]
[1745472958126,0.0337,92727.0,92726.0,0.1757208]
[1745472959328,0.0337,92727.0,92726.0,0.19135012]
[1745472960127,0.0337,92727.0,92726.0,0.1757208]
[1745472966829,1e-08,92728.0,92727.0,0.1078197]
[1745472967031,1e-08,92728.0,92727.0,0.1711197]
[1745472967329,1e-08,92728.0,92727.0,0.3431197]
[1745472968124,1e-08,92728.0,92727.0,0.3441197]
[1745472968620,1e-08,92728.0,92727.0,0.7049197]
[1745472969029,1e-08,92728.0,92727.0,0.8127637]
[1745472969431,1e-08,92728.0,92727.0,0.8137637]
[1745472970235,1e-08,92728.0,92727.0,0.7059197]
[1745472975249,1e-08,92728.0,92727.0,0.5339197]
[1745472976244,1e-08,92728.0,92727.0,0.7059197]
[1745472977356,1e-08,92728.0,92727.0,0.5339197]
[1745472977657,1e-08,92728.0,92727.0,0.5611397]
[1745472978057,1e-08,92728.0,92727.0,0.7331397]
[1745472979260,1e-08,92728.0,92727.0,0.5611397]
[1745472980166,1e-08,92728.0,92727.0,0.7331397]
[1745472981156,1e-08,92728.0,92727.0,0.5611397]
[1745472982058,1e-08,92728.0,92727.0,0.7331397]
[1745472983665,0.0308,92737.0,92727.0,0.7331397]
[1745472983666,0.0308,92737.0,92736.0,0.1078092]
[1745472983862,0.0311,92744.0,92741.0,0.1078034]
[1745472984169,0.0311,92744.0,92743.0,0.1078011]
[1745472984864,0.0311,92744.0,92743.0,0.1730011]
[1745472985467,0.0314,92747.0,92746.0,0.1077976]
[1745472985765,0.140286,92756.0,92755.0,0.1077871]
[1745472985963,0.172786,92756.0,92755.0,0.1077871]
[1745472986265,0.344786,92756.0,92755.0,0.1077871]
[1745472986866,0.349786,92756.0,92755.0,0.1087871]
[1745472987066,0.382686,92756.0,92755.0,0.1087871]
[1745472987768,0.388686,92756.0,92755.0,0.1097871]
[1745472988265,0.386686,92756.0,92755.0,0.1087871]
[1745472988466,0.385686,92756.0,92755.0,0.11838981]
[1745472988967,0.385686,92756.0,92755.0,0.1077871]
[1745472994269,0.0538963,92751.0,92750.0,0.1758318]
[1745472994465,0.4146963,92751.0,92750.0,0.1758318]
[1745472994666,0.4774963,92751.0,92750.0,0.1758318]
[1745472994866,0.4774963,92751.0,92750.0,0.1758329]
[1745472995067,0.6494963,92751.0,92750.0,0.1758329]
[1745472995458,0.6514963,92751.0,92750.0,0.1758329]
[1745472996471,0.6544963,92751.0,92750.0,0.1758329]
[1745472997374,0.6544963,92751.0,92750.0,0.1077929]
[1745473004282,0.6544963,92751.0,92750.0,0.1389929]
[1745473005080,0.4824963,92751.0,92750.0,0.1389929]
[1745473006083,0.6544963,92751.0,92750.0,0.1389929]
[1745473006778,0.2936963,92751.0,92750.0,0.1389929]
[1745473007175,0.2936963,92751.0,92750.0,0.15460922]
[1745473008574,0.2083,92751.0,92750.0,0.15460922]
[1745473009084,0.0363,92751.0,92750.0,0.15460922]
[1745473009280,0.005,92751.0,92750.0,0.1389929]
[1745473012586,0.1127918,92751.0,92750.0,0.1389929]
[1745473012788,0.1435918,92751.0,92750.0,0.1389929]
[1745473012986,0.0358,92751.0,92750.0,0.1389929]
[1745473013188,0.177,92751.0,92750.0,0.1389929]
[1745473017193,0.177,92751.0,92750.0,0.2070329]
[1745473032201,0.0301,92763.0,92753.0,0.0538947]
[1745473032506,0.0301,92763.0,92762.0,0.107779]
[1745473033103,0.2021,92763.0,92762.0,0.107779]
[1745473033609,0.2031,92763.0,92762.0,0.107779]
[1745473033799,0.173,92763.0,92762.0,0.171779]
[1745473036309,0.173,92763.0,92762.0,0.18752061]
[1745473039508,0.173,92763.0,92762.0,0.15432061]
[1745473040101,0.3107778,92763.0,92762.0,0.12352061]
[1745473040305,0.3107778,92763.0,92762.0,0.107779]
[1745473045213,0.6715778,92763.0,92762.0,0.107779]
[1745473051412,0.107779,92762.0,92761.0,0.1077797]
[1745473051606,0.140279,92762.0,92761.0,0.1077797]
[1745473051804,0.172179,92762.0,92761.0,0.1077797]
[1745473052205,0.344179,92762.0,92761.0,0.1077797]
[1745473053916,0.704979,92762.0,92761.0,0.1077797]
[1745473056523,0.344179,92762.0,92761.0,0.1077797]
[1745473056724,0.704979,92762.0,92761.0,0.1077797]
[1745473059222,0.672479,92762.0,92761.0,0.1077797]
[1745473059421,0.672479,92762.0,92761.0,0.1725797]
[1745473062125,0.672479,92762.0,92761.0,0.0315]
[1745473062314,0.672479,92762.0,92761.0,0.1392802]
[1745473067431,0.672479,92762.0,92761.0,0.1392802]
[1745473070224,0.311679,92762.0,92761.0,0.1392802]
[1745473070526,0.672479,92762.0,92761.0,0.1392802]
[1745473079133,0.672479,92762.0,92761.0,0.0315]
[1745473079327,0.1077895,92753.0,92730.0,0.0856439]
[1745473079530,0.4685895,92753.0,92736.0,0.06796]
[1745473079828,0.4685895,92753.0,92739.0,0.0332]
[1745473080232,0.6405895,92753.0,92743.0,0.107801]
[1745473080428,0.6405895,92753.0,92752.0,0.002]
[1745473081026,0.6728895,92753.0,92752.0,0.002]
[1745473081430,0.6728895,92753.0,92752.0,0.004]
[1745473081735,0.6728895,92753.0,92752.0,0.0356]
[1745473082038,0.6748895,92753.0,92752.0,0.0336]
[1745473082237,0.6768895,92753.0,92752.0,0.0316]
[1745473084032,0.7847015,92753.0,92752.0,0.0316]
[1745473084433,0.6768895,92753.0,92752.0,0.0316]
[1745473085939,0.6445895,92753.0,92752.0,0.1393906]
[1745473086128,0.1117895,92753.0,92752.0,0.1393906]
[1745473086830,0.4725895,92753.0,92752.0,0.1393906]
[1745473087630,0.4705895,92753.0,92752.0,0.1393906]
[1745473087829,0.4705895,92753.0,92752.0,0.1403906]
[1745473088025,0.4685895,92753.0,92752.0,0.1413906]
[1745473088734,0.4685895,92753.0,92752.0,0.1433906]
[1745473090034,0.1077895,92753.0,92752.0,0.1433906]
[1745473090336,0.4685895,92753.0,92752.0,0.1433906]
[1745473091936,0.1077895,92753.0,92752.0,0.1433906]
[1745473092129,0.4685895,92753.0,92752.0,0.1433906]
[1745473097339,0.4685895,92753.0,92752.0,0.004]
[1745473097635,0.0539056,92735.0,92734.0,0.2156101]
[1745473097825,0.0539056,92735.0,92734.0,0.2482101]
[1745473098326,0.2259056,92735.0,92734.0,0.2482101]
[1745473098834,0.2259056,92735.0,92734.0,0.3127101]
[1745473099230,0.0539056,92735.0,92734.0,0.3177101]
[1745473099833,0.0539056,92735.0,92734.0,0.3167101]
[1745473100031,0.0539056,92735.0,92734.0,0.3217101]
[1745473100740,0.468606,92740.0,92739.0,0.1078057]
[1745473101142,0.640606,92740.0,92739.0,0.1078057]
[1745473101641,0.279806,92740.0,92739.0,0.1715057]
[1745473102032,0.279806,92740.0,92739.0,0.1745057]
[1745473102543,0.279806,92740.0,92739.0,0.1715057]
[1745473102728,0.279806,92740.0,92739.0,0.1745057]
[1745473102934,0.640606,92740.0,92739.0,0.1785057]
[1745473104428,0.640606,92740.0,92739.0,0.1745057]
[1745473104633,0.640606,92740.0,92739.0,0.1785057]
[1745473104836,0.640606,92740.0,92739.0,0.1795057]
[1745473105745,0.5328,92740.0,92739.0,0.1755057]
[1745473106041,0.5328,92740.0,92739.0,0.1795057]
[1745473106542,0.6406046,92740.0,92739.0,0.1795057]
[1745473107437,0.6406046,92740.0,92739.0,0.1755057]
[1745473107644,0.6406046,92740.0,92739.0,0.1795057]
[1745473108744,0.5328,92740.0,92739.0,0.1795057]
[1745473109242,0.3608,92740.0,92739.0,0.1795057]
[1745473111049,0.3608,92740.0,92739.0,0.19518821]
[1745473111347,0.0539006,92743.0,92742.0,0.1078022]
[1745473111539,0.0539006,92743.0,92742.0,0.12348471]
[1745473112147,0.2259006,92743.0,92742.0,0.12348471]
[1745473112449,0.2259006,92743.0,92742.0,0.22298471]
[1745473113048,0.2259006,92743.0,92742.0,0.2073022]
[1745473113948,0.172,92743.0,92742.0,0.2103022]
[1745473114147,0.4686003,92744.0,92743.0,0.1078011]
[1745473114345,0.4686003,92744.0,92743.0,0.1721011]
[1745473115140,0.6406003,92744.0,92743.0,0.1721011]
[1745473115340,0.6406003,92744.0,92743.0,0.1781011]
[1745473116246,0.5328,92744.0,92743.0,0.1781011]
[1745473117150,0.3608,92744.0,92743.0,0.1781011]
[1745473117453,0.1077999,92744.0,92743.0,0.1781011]
[1745473118854,0.0538988,92746.0,92745.0,0.1077988]
[1745473120050,0.0538988,92746.0,92745.0,0.1107988]
[1745473120245,0.0538988,92746.0,92745.0,0.1137988]
[1745473120955,0.1616938,92748.0,92745.0,0.006]
[1745473121153,0.0538965,92750.0,92746.0,0.0645]
[1745473121461,0.0538965,92750.0,92749.0,0.1077941]
[1745473122049,0.0849956,92752.0,92751.0,0.1077918]
[1745473122658,0.0849956,92752.0,92751.0,0.1715918]
[1745473122960,0.3608,92753.0,92752.0,0.1077906]
[1745473123158,0.6405895,92753.0,92752.0,0.1714906]
[1745473123959,0.6715895,92753.0,92752.0,0.1714906]
[1745473124257,0.4995895,92753.0,92752.0,0.1724906]
[1745473124450,0.5300895,92753.0,92752.0,0.1724906]
[1745473125359,0.7020895,92753.0,92752.0,0.1724906]
[1745473126061,0.7020895,92753.0,92752.0,0.1734906]
[1745473131662,0.5633,92753.0,92752.0,0.1734906]
[1745473132760,0.6710895,92753.0,92752.0,0.1734906]
[1745473134655,0.7043895,92753.0,92752.0,0.1734906]
[1745473146670,0.5966,92753.0,92752.0,0.1734906]
[1745473146971,0.5633,92753.0,92752.0,0.1734906]
[1745473147167,0.6710895,92753.0,92752.0,0.1734906]
[1745473148973,0.5633,92753.0,92752.0,0.1734906]
[1745473150573,0.5328,92753.0,92752.0,0.1734906]
[1745473151174,0.3608,92753.0,92752.0,0.1734906]
[1745473151776,0.1077854,92757.0,92756.0,0.107786]
[1745473152665,0.1077854,92757.0,92756.0,0.171786]
[1745473153070,0.2797854,92757.0,92756.0,0.171786]
[1745473153478,0.172,92757.0,92756.0,0.171786]
[1745473153862,0.172,92757.0,92756.0,0.18239146]
[1745473154068,0.2022,92757.0,92756.0,0.18239146]
[1745473157278,0.2022,92757.0,92756.0,0.171786]
[1745473159369,0.2022,92757.0,92756.0,0.1827259]
[1745473163486,0.3099848,92757.0,92756.0,0.140186]
[1745473163688,0.3745848,92757.0,92756.0,0.140186]
[1745473166679,0.2668,92757.0,92756.0,0.140186]
[1745473168184,0.3745848,92757.0,92756.0,0.140186]
[1745473174988,0.3424848,92757.0,92756.0,0.140186]
[1745473179503,0.3099848,92757.0,92756.0,0.140186]
[1745473179705,0.172,92757.0,92756.0,0.140186]
[1745473179898,0.2797848,92757.0,92756.0,0.140186]
[1745473182104,0.1077848,92757.0,92756.0,0.140186]
[1745473183098,0.2797848,92757.0,92756.0,0.140186]
[1745473185210,0.1077848,92757.0,92756.0,0.140186]
[1745473192107,0.2797848,92757.0,92756.0,0.140186]
[1745473193109,0.1077848,92757.0,92756.0,0.140186]
[1745473193913,0.1077848,92757.0,92756.0,0.142186]
[1745473213035,0.1077848,92757.0,92756.0,0.15799839]
[1745473214941,0.1077848,92757.0,92756.0,0.142186]
[1745473218644,0.4146802,92779.0,92763.0,0.0538884]
[1745473218848,0.4146802,92779.0,92769.0,0.1077709]
[1745473218849,0.1400712,92770.0,92769.0,0.1077709]
[1745473219031,0.0631,92775.0,92770.0,0.1077697]
[1745473219235,0.0323,92774.0,92770.0,0.1077697]
[1745473219634,0.1400652,92774.0,92770.0,0.1077697]
[1745473220146,0.5328,92771.0,92770.0,0.1077697]
[1745473220546,0.5358,92771.0,92770.0,0.1077697]
[1745473221548,0.5388,92771.0,92770.0,0.1077697]
[1745473221750,0.5358,92771.0,92770.0,0.1077697]
[1745473221947,0.5388,92771.0,92770.0,0.1077697]
[1745473222447,0.6465685,92771.0,92770.0,0.1077697]
[1745473222951,0.1077755,92765.0,92764.0,0.2294208]
[1745473224048,0.1087755,92765.0,92764.0,0.2294208]
[1745473224247,0.3435755,92765.0,92764.0,0.2294208]
[1745473224639,0.3445755,92765.0,92764.0,0.2294208]
[1745473225643,0.3445755,92765.0,92764.0,0.1216476]
[1745473225833,0.1077813,92760.0,92759.0,0.1641045]
[1745473226237,0.2797813,92760.0,92759.0,0.1641045]
[1745473226645,0.3444813,92760.0,92759.0,0.271887]
[1745473227050,0.3444813,92760.0,92759.0,0.1077825]
[1745473229241,0.1077848,92757.0,92756.0,0.1641045]
[1745473229448,0.4685848,92757.0,92756.0,0.1641045]
[1745473230036,0.1077941,92749.0,92741.0,0.00161734]
[1745473230240,0.1077953,92748.0,92747.0,0.16468096]
[1745473230441,0.2020953,92748.0,92747.0,0.16468096]
[1745473230853,0.2020953,92748.0,92747.0,0.18039102]
[1745473231245,0.3740953,92748.0,92747.0,0.18039102]
[1745473231949,0.3750953,92748.0,92747.0,0.18039102]
[1745473232651,0.3760953,92748.0,92747.0,0.18039102]